bitfinex/quotes_ETHUSD_20241106
["timestamp","ask_amount","ask_price","bid_price","bid_amount"]
[1730852837397,2.2157806,2458.2,2457.7,4.06871]
[1730852837562,2.2157806,2458.2,2457.4,0.406946]
[1730852837762,2.2157806,2458.2,2457.8,4.06851]
[1730852838474,2.2157806,2458.2,2457.9,4.06849]
[1730852838792,0.5204494,2458.2,2457.8,4.06851]
[1730852839000,2.2157806,2458.2,2457.8,4.06851]
[1730852839153,0.0550866,2458.2,2458.1,4.06818]
[1730852839953,0.0550866,2458.2,2458.1,4.69952768]
[1730852840155,0.0550866,2458.2,2458.1,4.06818]
[1730852840391,0.0550866,2458.2,2458.1,4.881831]
[1730852841486,0.0550866,2458.2,2458.1,0.813651]
[1730852841688,0.0550866,2458.2,2458.1,4.06818]
[1730852843395,0.0550866,2458.2,2458.1,4.14952761]
[1730852843700,0.0550866,2458.2,2458.1,4.06818]
[1730852844067,0.0550866,2458.2,2458.1,8.37328]
[1730852844068,6.6e-06,2458.2,2458.1,8.37328]
[1730852845951,6.6e-06,2458.2,2458.1,8.38328]
[1730852846112,6.6e-06,2458.2,2458.1,9.629441]
[1730852846307,6.6e-06,2458.2,2458.1,9.619441]
[1730852846517,6.6e-06,2458.2,2458.1,9.079441]
[1730852847835,6.6e-06,2458.2,2458.1,9.629441]
[1730852849417,0.7791,2459.2,2459.1,4.06652]
[1730852849613,0.0603645,2459.4,2459.3,4.06619]
[1730852849841,0.0603645,2459.4,2459.3,6.202844]
[1730852850573,0.8271645,2459.4,2459.3,4.06619]
[1730852850855,0.8271645,2459.4,2458.7,0.51669643]
[1730852850856,0.8271645,2459.4,2459.0,4.06659]
[1730852851063,0.8271645,2459.4,2458.4,3.0]
[1730852851064,0.8271645,2459.4,2458.8,4.06697]
[1730852851270,0.8271645,2459.4,2459.3,4.06619]
[1730852851572,6.7653312,2460.0,2459.3,4.06619]
[1730852851573,4.5e-06,2460.0,2459.4,0.7734]
[1730852851719,4.5e-06,2460.0,2459.9,4.0652]
[1730852854328,4.5e-06,2460.0,2459.9,4.6152]
[1730852854528,2.04419309,2460.1,2459.9,4.6152]
[1730852854529,7.59e-06,2460.1,2460.0,4.61504]
[1730852855341,7.59e-06,2460.1,2460.0,4.06504]
[1730852855537,7.59e-06,2460.1,2459.7,4.06542]
[1730852855758,7.59e-06,2460.1,2458.7,4.06714]
[1730852855759,0.7668,2459.9,2458.7,4.06714]
[1730852855983,0.7668,2459.9,2458.9,12.20055]
[1730852856181,0.7668,2459.9,2459.4,4.06601]
[1730852856547,0.7668,2459.9,2459.5,4.06579]
[1730852857170,0.7668,2459.9,2459.3,4.06606]
[1730852857373,0.7668,2459.9,2459.4,4.06593]
[1730852857759,0.7668,2459.9,2459.4,4.06601]
[1730852858053,7.59e-06,2460.1,2459.7,4.06553]
[1730852858271,7.59e-06,2460.1,2460.0,4.06504]
[1730852859466,7.59e-06,2460.1,2460.0,4.83844]
[1730852859708,7.59e-06,2460.1,2460.0,5.46971899]
[1730852859913,7.59e-06,2460.1,2460.0,5.38844]
[1730852860073,7.59e-06,2460.1,2460.0,9.344804]
[1730852860571,2.09e-06,2460.6,2460.5,8.38761]
[1730852862019,2.09e-06,2460.6,2460.5,4.83761]
[1730852862185,2.09e-06,2460.6,2460.5,4.06421]
[1730852863636,2.09e-06,2460.6,2460.5,4.61421]
[1730852863927,2.09e-06,2460.6,2460.5,4.932069]
[1730852864628,2.09e-06,2460.6,2460.5,39.932069]
[1730852866969,2.09e-06,2460.6,2460.5,4.932069]
[1730852867092,2.09e-06,2460.6,2460.5,5.684269]
[1730852867416,2.09e-06,2460.6,2460.5,39.932069]
[1730852868194,2.09e-06,2460.6,2460.5,4.06421]
[1730852869839,2.09e-06,2460.6,2460.4,4.06437]
[1730852870006,2.09e-06,2460.6,2460.2,4.06464]
[1730852870336,0.8056,2460.5,2460.0,4.06497]
[1730852870547,0.8056,2460.5,2459.9,4.06518]
[1730852870548,0.84593344,2460.5,2459.9,4.06518]
[1730852870776,0.8056,2460.5,2459.8,4.06525]
[1730852870932,0.8056,2460.5,2459.5,4.06586]
[1730852871268,0.58056021,2460.4,2460.0,4.06503]
[1730852871452,0.8056,2460.5,2460.0,4.06503]
[1730852871651,0.8056,2460.5,2459.6,0.0813014]
[1730852871652,0.8056,2460.5,2460.4,4.06437]
[1730852872168,0.8458534,2460.5,2460.4,4.06437]
[1730852872863,0.0402534,2460.5,2460.4,4.06437]
[1730852873046,2.09e-06,2460.6,2460.5,4.06421]
[1730852873242,2.09e-06,2460.6,2460.5,4.877068]
[1730852873651,2.09e-06,2460.6,2460.5,4.06421]
[1730852873977,2.09e-06,2460.6,2460.5,39.06421]
[1730852875248,2.09e-06,2460.6,2460.5,4.06421]
[1730852876354,2.09e-06,2460.6,2460.4,35.0]
[1730852876547,2.09e-06,2460.6,2460.4,39.06424]
[1730852876744,2.09e-06,2460.6,2459.6,0.7522]
[1730852876948,0.8056,2460.5,2459.8,4.06537]
[1730852877146,0.8056,2460.5,2460.1,4.06471]
[1730852877454,0.03848867,2460.4,2460.2,4.06457]
[1730852877779,0.03848867,2460.4,2460.0,4.06493]
[1730852878017,0.03848867,2460.4,2459.8,35.0]
[1730852878296,0.44876875,2460.4,2459.6,4.06553]
[1730852878482,0.44876875,2460.4,2459.2,4.0662]
[1730852878483,5.0,2460.3,2459.2,4.06636]
[1730852878652,5.0,2460.3,2459.6,4.06557]
[1730852879060,4.06496,2460.1,2459.4,4.06593]
[1730852879582,4.07481,2460.2,2459.4,4.06593]
[1730852879754,4.06506,2460.0,2459.3,35.0]
[1730852880086,0.40950268,2459.9,2459.3,39.06609]
[1730852880245,0.7754,2460.0,2459.6,4.06569]
[1730852880651,0.7754,2460.0,2459.4,4.06596]
[1730852881086,0.03785125,2459.9,2459.4,4.06596]
[1730852881298,0.03785125,2459.9,2459.3,35.0]
[1730852881299,4.06571,2459.6,2458.9,4.06674]
[1730852881600,0.7754,2459.1,2458.3,4.06769]
[1730852881747,0.7754,2458.9,2458.5,35.0]
[1730852882605,0.7754,2458.9,2458.3,4.06784]
[1730852882807,5.0,2458.5,2457.8,1.24863562]
[1730852882968,5.7754,2458.2,2457.8,1.24863562]
[1730852883163,0.7754,2458.2,2457.8,1.24863562]
[1730852883519,4.06783,2458.4,2457.8,1.24863562]
[1730852883520,5.0,2458.3,2457.8,1.24863562]
[1730852883672,0.01,2458.2,2457.8,1.24863562]
[1730852884331,5.0,2457.6,2456.9,4.13047241]
[1730852884707,5.0,2457.2,2456.9,0.06036241]
[1730852885012,5.0,2457.8,2457.1,4.06969]
[1730852885230,4.06819,2458.1,2457.3,4.06938]
[1730852885231,5.0,2458.1,2457.3,4.06938]
[1730852885375,5.0,2458.4,2457.9,4.06839]
[1730852885772,5.0,2458.4,2458.0,4.06834]
[1730852886219,5.0,2458.4,2457.7,4.06876]
[1730852886522,0.7754,2458.3,2458.1,35.0]
[1730852887115,5.0,2458.1,2457.3,4.06944]
[1730852887274,0.7754,2458.0,2457.4,4.06933]
[1730852887472,0.7754,2458.0,2457.6,4.06897]
[1730852887802,0.7754,2458.0,2457.5,4.06904]
[1730852888010,0.7754,2458.0,2456.9,0.06036241]
[1730852888011,0.7754,2457.5,2456.9,4.13039241]
[1730852888328,0.7754,2457.5,2457.1,4.0698]
[1730852889313,0.7754,2457.5,2457.2,4.06964]
[1730852889499,0.7754,2457.5,2457.1,4.0698]
[1730852889699,0.7754,2457.5,2456.9,4.54343165]
[1730852890018,0.7754,2457.5,2456.9,0.47340165]
[1730852890218,0.7754,2457.5,2457.0,39.06997]
[1730852890433,0.7754,2457.5,2457.2,4.06967]
[1730852890712,0.7754,2457.5,2457.1,4.06971]
[1730852890938,0.7754,2457.5,2457.3,4.06936]
[1730852891414,0.7754,2457.5,2457.4,35.0]
[1730852891798,0.01,2458.1,2457.5,4.06912]
[1730852891991,0.7754,2457.9,2457.4,35.0]
[1730852892577,0.7754,2458.3,2458.1,4.06802]
[1730852892780,0.7754,2458.9,2458.1,4.06802]
[1730852893019,0.7754,2458.9,2457.9,4.06845]
[1730852893020,0.7754,2458.7,2457.9,4.06845]
[1730852893309,0.7754,2458.7,2458.1,4.06812]
[1730852893509,0.7754,2458.7,2458.5,4.06749]
[1730852893714,0.7754,2458.7,2458.6,4.06735]
[1730852893928,0.7754,2458.7,2458.4,4.06755]
[1730852894133,0.406571,2459.5,2458.6,4.06735]
[1730852894341,0.784,2459.1,2458.8,4.0669]
[1730852894504,0.784,2459.1,2458.6,4.06735]
[1730852894824,0.784,2459.1,2458.7,39.473895]
[1730852895027,0.784,2459.1,2458.7,39.06718]
[1730852895387,0.784,2459.1,2458.7,35.0]
[1730852896412,5.784,2459.1,2458.4,4.06766]
[1730852896588,5.784,2459.1,2458.4,4.06756]
[1730852896925,0.784,2459.1,2458.7,4.06717]
[1730852897083,0.784,2459.1,2458.5,39.474226]
[1730852897482,0.784,2459.1,2458.3,4.06782]
[1730852897483,0.794,2459.1,2458.3,4.06782]
[1730852897738,4.06686,2458.9,2458.2,4.06801]
[1730852897908,0.784,2458.8,2458.1,4.06813]
[1730852898083,0.784,2458.8,2458.3,4.06773]
[1730852898288,0.784,2458.8,2458.5,4.06747]
[1730852898489,0.784,2458.8,2458.3,4.06773]
[1730852899027,0.784,2458.8,2458.4,0.406773]
[1730852899229,0.784,2458.8,2458.3,4.06781]
[1730852899401,0.784,2458.8,2458.1,35.0]
[1730852899591,0.784,2458.8,2458.3,8.13544]
[1730852899801,0.784,2458.8,2458.3,4.0677]
[1730852900309,0.784,2458.8,2458.2,35.0]
[1730852900689,1.3624,2458.8,2458.1,4.06805]
[1730852900897,0.784,2458.8,2458.1,0.7868]
[1730852901201,0.784,2459.8,2459.4,4.06591]
[1730852901597,0.784,2459.8,2459.1,4.06641]
[1730852901789,0.784,2459.8,2459.0,4.06656]
[1730852901988,1.268932,2459.8,2459.1,4.06651]
[1730852902209,1.268932,2459.8,2458.7,0.7868]
[1730852902210,4.06565,2459.7,2458.8,4.06691]
[1730852902429,5.0,2459.5,2458.8,4.06687]
[1730852902634,5.0,2459.5,2458.9,4.06681]
[1730852902803,5.0,2459.5,2459.0,4.06669]
[1730852902990,0.784,2459.6,2459.1,4.06652]
[1730852903206,0.784,2459.6,2459.4,4.06592]
[1730852903388,0.784,2459.6,2459.3,4.06618]
[1730852903623,5.784,2460.3,2459.7,4.0655]
[1730852903838,5.784,2460.3,2459.6,4.06558]
[1730852904044,5.784,2460.3,2459.7,4.06537]
[1730852904331,0.5784,2460.2,2459.7,4.06537]
[1730852904530,5.784,2460.3,2459.7,4.06537]
[1730852904745,5.784,2460.3,2459.7,8.13077]
[1730852905032,5.784,2460.3,2459.8,4.06536]
[1730852905388,5.784,2460.3,2459.7,4.06537]
[1730852905593,5.784,2460.3,2459.5,4.06581]
[1730852905594,9.84858,2460.3,2459.5,8.13154]
[1730852905794,0.984858,2460.2,2459.6,4.06556]
[1730852906292,0.784,2460.3,2459.9,4.06518]
[1730852906511,0.784,2460.3,2459.7,4.0655]
[1730852906721,0.784,2460.3,2459.7,4.06542]
[1730852907428,0.784,2460.3,2459.9,4.06517]
[1730852907630,0.784,2460.3,2460.2,4.06471]
[1730852907844,0.784,2461.0,2460.3,4.06453]
[1730852907998,5.0,2460.8,2460.3,4.06453]
[1730852908343,0.7741,2460.7,2459.9,4.06509]
[1730852908544,0.57741,2460.6,2460.0,4.065]
[1730852908860,0.7841,2461.5,2460.8,4.06366]
[1730852909072,0.7741,2461.4,2460.3,0.55]
[1730852909347,0.81252356,2461.4,2460.8,4.06366]
[1730852909555,0.81252356,2461.4,2461.2,4.06292]
[1730852909716,0.81252356,2461.4,2461.0,4.06327]
[1730852909905,0.81252356,2461.4,2460.4,4.06437]
[1730852910105,0.81252356,2461.4,2460.7,4.06382]
[1730852910338,0.7741,2461.4,2460.7,4.06377]
[1730852911102,4.83694,2461.4,2460.5,4.0641]
[1730852911307,0.7741,2461.4,2460.8,4.06371]
[1730852911548,0.7741,2461.4,2460.7,4.06377]
[1730852911907,0.7741,2461.4,2459.9,0.01]
[1730852911908,0.7741,2461.1,2460.3,4.06448]
[1730852912146,4.64079,2461.0,2460.3,4.06448]
[1730852912311,4.64079,2461.0,2460.1,4.06485]
[1730852912606,0.7741,2460.9,2460.2,4.06466]
[1730852912853,4.06392,2460.7,2459.3,0.57032169]
[1730852913051,4.06392,2460.7,2459.6,4.0657]
[1730852913052,0.7741,2460.6,2459.6,4.0657]
[1730852913205,1.35151,2460.6,2459.8,4.06529]
[1730852913842,1.35151,2460.6,2459.8,4.06524]
[1730852914010,1.35151,2460.6,2459.5,0.8317]
[1730852914223,1.35151,2460.6,2459.9,8.13015]
[1730852914417,1.35151,2460.6,2459.9,4.06506]
[1730852914653,0.635151,2460.5,2459.9,4.06506]
[1730852916221,0.635151,2460.5,2459.7,4.06546]
[1730852916222,0.7741,2460.4,2459.7,4.06546]
[1730852916424,0.7741,2460.4,2459.8,4.06521]
[1730852916650,0.7741,2460.4,2459.2,4.16800276]
[1730852916821,0.7741,2460.3,2459.6,8.13118]
[1730852917026,0.7741,2460.3,2459.6,8.13116]
[1730852917241,0.7741,2460.3,2459.4,4.06592]
[1730852917511,4.83898,2460.1,2459.4,4.06592]
[1730852917712,8.90398,2460.1,2459.3,4.06618]
[1730852917961,0.7741,2460.0,2459.2,4.0662]
[1730852918140,9.06488,2460.1,2459.0,4.06662]
[1730852918141,0.7741,2459.8,2459.0,4.06662]
[1730852918339,0.7741,2459.8,2458.8,4.06691]
[1730852918340,4.83957,2459.8,2458.8,4.06691]
[1730852918511,0.89048,2459.7,2458.9,4.06674]
[1730852918712,4.8398,2459.6,2458.7,4.06713]
[1730852919060,4.0664,2459.2,2458.3,4.06777]
[1730852919213,0.7741,2459.1,2458.3,4.06774]
[1730852919408,0.7741,2459.1,2458.1,0.8317]
[1730852919613,0.7741,2459.1,2458.3,4.06771]
[1730852919844,0.7741,2459.1,2458.4,4.06763]
[1730852920022,0.7741,2459.1,2458.3,4.06771]
[1730852920563,0.7741,2459.5,2459.0,4.06669]
[1730852921054,0.7741,2459.5,2458.6,4.89899]
[1730852921055,0.7741,2460.0,2459.4,4.06603]
[1730852921259,0.7741,2460.0,2459.4,0.406603]
[1730852921412,0.7741,2460.0,2459.6,4.06554]
[1730852921607,0.7741,2460.0,2459.7,4.06542]
[1730852922216,0.7741,2460.0,2459.6,4.06554]
[1730852922415,0.7741,2460.0,2459.4,4.06596]
[1730852922613,0.7741,2460.0,2459.5,4.0658]
[1730852922856,0.7741,2460.0,2459.5,0.813176]
[1730852924035,0.7741,2460.0,2459.2,0.8317]
[1730852924036,0.7741,2460.0,2459.2,4.06626]
[1730852924212,4.83914,2460.0,2459.1,4.0664]
[1730852924665,4.83914,2460.0,2459.1,8.1328]
[1730852924823,4.83914,2460.0,2459.2,4.06625]
[1730852925024,0.7741,2460.0,2459.4,4.06598]
[1730852925228,0.7741,2460.0,2459.5,0.406598]
[1730852925439,4.83923,2460.0,2459.0,8.13315]
[1730852925639,8.90442,2460.0,2459.1,4.06642]
[1730852926014,4.06522,2459.9,2459.1,4.06642]
[1730852926613,4.83923,2460.0,2459.2,4.06627]
[1730852926862,4.83923,2460.0,2459.1,4.06642]
[1730852927013,4.06539,2459.8,2459.1,4.06642]
[1730852927209,4.06539,2459.8,2458.9,4.87826]
[1730852927415,0.483923,2459.9,2458.8,4.16800276]
[1730852927416,4.06576,2459.6,2458.8,4.16800276]
[1730852927642,4.06597,2459.5,2458.7,4.06709]
[1730852927840,0.7791,2459.3,2458.7,4.06709]
[1730852928040,0.7791,2459.3,2458.5,4.06745]
[1730852928242,0.7791,2459.3,2458.5,4.97214528]
[1730852928617,0.7791,2459.3,2458.5,4.97208528]
[1730852928860,0.7791,2459.3,2458.5,9.03950528]
[1730852929154,0.7791,2459.3,2458.5,4.97208528]
[1730852929352,0.7791,2459.3,2458.5,0.90469528]
[1730852929575,4.06683,2459.0,2458.4,4.16800276]
[1730852929885,0.7791,2458.9,2458.1,4.0681]
[1730852930013,0.7791,2458.9,2458.0,4.97950276]
[1730852930217,0.7791,2458.9,2458.1,4.06814]
[1730852930439,4.06705,2458.8,2458.2,0.90476428]
[1730852930640,4.06705,2458.8,2458.0,8.23633276]
[1730852930856,4.06705,2458.8,2458.1,4.06818]
[1730852931077,5.7791,2458.9,2458.0,8.23621276]
[1730852931382,5.7791,2458.9,2458.2,0.08134664]
[1730852931578,4.0672,2458.7,2458.2,0.08134664]
[1730852931761,4.0672,2458.7,2458.0,8.23621276]
[1730852931762,4.9051543,2458.7,2458.0,4.16800276]
[1730852932340,4.9051543,2458.7,2457.9,4.0685]
[1730852932341,0.7791,2458.9,2458.4,4.16800276]
[1730852933363,4.84596,2458.9,2458.0,8.23624276]
[1730852933561,4.06713,2458.8,2458.1,4.06816]
[1730852933953,4.06713,2458.8,2458.0,8.23622276]
[1730852934135,4.06759,2458.5,2458.0,4.16800276]
[1730852934336,4.06739,2458.6,2458.0,4.16800276]
[1730852934737,0.7791,2458.3,2457.7,0.8115]
[1730852934975,0.7791,2458.3,2457.8,4.06863]
[1730852935273,4.06806,2458.2,2457.6,8.23688276]
[1730852935783,4.06806,2458.2,2457.6,12.30579276]
[1730852936080,4.06806,2458.2,2457.6,8.23695276]
[1730852936263,8.13621,2458.2,2457.6,8.23695276]
[1730852936585,4.06835,2458.0,2457.4,8.94994]
[1730852936736,4.06802,2458.2,2457.4,6.19249428]
[1730852936937,4.06802,2458.2,2457.5,4.06916]
[1730852937478,4.06802,2458.2,2457.6,4.06887]
[1730852937846,0.7791,2458.3,2457.8,4.0686]
[1730852938355,0.7791,2458.7,2458.1,4.06806]
[1730852938537,0.7791,2458.7,2458.1,0.41494267]
[1730852938738,0.7791,2458.7,2458.2,4.06785]
[1730852939881,0.7791,2458.7,2458.0,4.16800276]
[1730852940242,0.7791,2458.7,2458.2,4.06787]
[1730852940483,0.7791,2458.7,2457.7,4.88029]
[1730852940484,4.06736,2458.6,2457.9,4.0684]
[1730852940692,4.06736,2458.6,2458.1,4.06811]
[1730852940839,4.06736,2458.6,2458.0,0.40684]
[1730852941046,0.7791,2458.7,2457.7,4.88024]
[1730852941354,4.06777,2458.4,2457.8,4.06866]
[1730852941560,8.13554,2458.4,2457.8,4.06866]
[1730852941758,4.06805,2458.2,2457.6,8.23698276]
[1730852941946,0.8148,2458.1,2457.6,8.23698276]
[1730852942146,0.8148,2458.1,2457.7,4.06881]
[1730852942378,0.8148,2458.1,2457.7,8.1375]
[1730852942624,0.8148,2458.1,2457.9,4.0685]
[1730852942779,4.88234,2458.5,2457.9,4.0685]
[1730852943118,4.88234,2458.5,2457.7,4.06877]
[1730852943119,4.0677,2458.4,2457.7,4.06877]
[1730852943281,4.0677,2458.4,2457.7,4.06875]
[1730852943679,4.0683,2458.1,2457.5,3.66453657]
[1730852943987,4.06869,2457.8,2457.3,4.06939]
[1730852944195,8.13747,2457.8,2457.2,3.66453657]
[1730852944392,1.395227,2457.8,2457.2,3.66453657]
[1730852944592,1.395227,2457.8,2457.0,0.8007]
[1730852944593,4.0693,2457.5,2456.9,4.13042241]
[1730852944921,0.8148,2457.4,2456.9,0.06036241]
[1730852945218,5.8148,2457.4,2456.9,0.06036241]
[1730852945426,4.07,2457.0,2456.9,0.06036241]
[1730852945578,0.8148,2457.0,2456.9,0.06036241]
[1730852947930,5.0,2457.3,2457.1,4.06982]
[1730852948082,0.8148,2457.4,2457.2,4.06967]
[1730852948286,0.8148,2458.0,2457.8,4.06854]
[1730852948581,0.8148,2458.3,2457.8,4.06854]
[1730852948788,0.8148,2458.3,2457.6,4.0689]
[1730852948789,4.88275,2458.3,2457.6,4.0689]
[1730852948996,4.06801,2458.2,2457.6,4.0689]
[1730852949190,9.06828,2458.1,2457.4,4.06925]
[1730852949396,4.06852,2457.9,2457.2,4.06955]
[1730852949933,4.06877,2457.8,2457.1,0.82000424]
[1730852950134,4.06877,2457.8,2457.0,8.24550811]
[1730852950135,4.06912,2457.6,2457.0,4.06987]
[1730852950366,0.8148,2457.5,2456.9,0.06036241]
[1730852950524,0.8148,2457.5,2456.9,4.13042241]
[1730852950729,4.88399,2457.5,2456.9,4.13042241]
[1730852951076,9.06949,2457.4,2456.9,0.06036241]
[1730852951728,5.0,2457.4,2456.9,0.06036241]
[1730852952379,1.710111,2457.5,2457.2,4.06953]
[1730852952380,0.8148,2457.5,2457.2,4.06953]
[1730852952576,0.8148,2457.9,2457.6,4.06899]
[1730852952850,0.8148,2457.9,2457.5,4.06908]
[1730852953251,0.8148,2457.9,2457.5,0.813829]
[1730852953580,5.8148,2458.3,2457.8,4.06867]
[1730852953989,5.8148,2458.3,2457.8,8.13724]
[1730852954288,9.88266,2458.3,2457.6,4.06891]
[1730852954490,0.7623,2457.9,2457.2,4.06956]
[1730852954636,0.57623,2457.8,2457.2,4.06956]
[1730852954836,9.06895,2457.7,2457.0,8.13979]
[1730852955143,5.0,2457.7,2457.2,4.06965]
[1730852955337,5.0,2457.7,2457.2,4.06957]
[1730852955564,0.7623,2457.6,2457.2,4.06957]
[1730852956479,0.7623,2457.6,2457.1,4.0698]
[1730852956648,0.7623,2457.6,2457.2,4.06955]
[1730852957177,0.7623,2457.6,2457.2,8.13913]
[1730852957580,0.7623,2457.6,2457.2,4.06955]
[1730852958343,0.7623,2457.6,2457.1,4.0698]
[1730852958667,0.7623,2457.6,2457.2,4.06957]
[1730852959206,5.0,2457.4,2456.9,0.06036241]
[1730852959384,1.30704483,2457.6,2457.2,4.06965]
[1730852959921,5.37615483,2457.6,2457.0,4.06987]
[1730852960055,5.37607483,2457.6,2457.0,4.06987]
[1730852960486,0.7623,2457.4,2456.9,0.06036241]
[1730852960688,5.890076,2457.3,2456.9,0.06036241]
[1730852960900,9.959676,2457.3,2456.9,0.06036241]
[1730852961216,5.0,2457.0,2456.9,0.06036241]
[1730852963058,9.8423,2457.0,2456.9,0.06036241]
[1730852963358,0.7623,2456.3,2456.0,4.07165]
[1730852964262,0.7623,2456.3,2455.8,4.0719]
[1730852964496,2.152709,2456.3,2455.8,4.0719]
[1730852964697,5.0,2456.1,2455.7,0.0603645]
[1730852965110,0.7623,2456.0,2455.7,0.0603645]
[1730852965315,4.8341,2456.0,2455.7,0.0603645]
[1730852965553,0.7623,2456.0,2455.7,0.0603645]
[1730852965859,0.983389,2455.9,2455.7,0.0603645]
[1730852966822,0.7623,2456.0,2455.7,0.0603645]
[1730852967126,0.7623,2456.0,2455.8,4.07189]
[1730852967456,5.7623,2456.0,2455.7,0.0603645]
[1730852967818,0.7623,2456.0,2455.7,0.0603645]
[1730852969160,0.7623,2456.0,2455.7,4.1324845]
[1730852969358,1.33853,2456.0,2455.7,0.0603645]
[1730852971835,5.41031,2456.0,2455.7,0.0603645]
[1730852972038,4.07192,2455.9,2455.7,0.0603645]
[1730852972531,9.07199,2455.8,2455.7,0.0603645]
[1730852972869,5.0,2455.8,2455.7,0.0603645]
[1730852973067,5.0,2455.9,2455.7,0.0603645]
[1730852974831,1.33853,2456.0,2455.8,4.07197]
[1730852975036,5.0,2456.2,2455.8,4.07197]
[1730852975275,5.0,2455.9,2455.7,0.0603645]
[1730852975634,5.0,2456.2,2455.7,0.0603645]
[1730852975892,5.7652,2456.3,2455.8,4.07197]
[1730852976178,5.0,2456.3,2456.1,4.07148]
[1730852976334,0.7652,2456.6,2456.2,4.07123]
[1730852976538,5.7652,2456.9,2456.5,4.07083]
[1730852976878,5.7652,2456.9,2456.4,4.07098]
[1730852976879,9.83539,2456.9,2456.4,4.07098]
[1730852977063,5.7652,2456.9,2456.2,4.07123]
[1730852977269,5.7652,2456.9,2456.4,4.07096]
[1730852978638,9.83537,2456.9,2456.4,4.07096]
[1730852978845,1.390548,2456.8,2456.4,4.07096]
[1730852979134,5.460908,2456.8,2456.2,4.07126]
[1730852979334,5.460908,2456.8,2456.2,8.14249]
[1730852979584,5.7652,2456.9,2456.0,3.6719255]
[1730852979785,9.07075,2456.6,2456.0,4.07154]
[1730852979992,9.07075,2456.6,2455.8,0.7593]
[1730852979993,5.0,2456.7,2456.4,4.0709]
[1730852980373,5.0,2456.7,2456.4,8.14179]
[1730852980561,0.7652,2456.9,2456.2,4.07122]
[1730852980562,5.7652,2456.9,2456.2,4.07122]
[1730852980756,4.07052,2456.7,2456.2,4.07122]
[1730852981065,0.7652,2456.4,2455.7,3.73229]
[1730852981260,0.7652,2456.4,2456.0,4.07164]
[1730852982128,0.7652,2456.4,2455.7,3.73229]
[1730852982129,5.0,2455.9,2455.7,0.0603645]
[1730852984677,9.07192,2455.9,2455.7,0.0603645]
[1730852984912,1.314368,2455.8,2455.7,0.0603645]
[1730852986588,5.386358,2455.8,2455.7,0.0603645]
[1730852987203,1.314368,2455.8,2455.7,0.0603645]
[1730852987415,5.386358,2455.8,2455.7,0.0603645]
[1730852987711,9.07184,2455.9,2455.7,4.1325145]
[1730852987712,5.0,2455.9,2455.7,4.1325145]
[1730852987917,5.0,2455.9,2455.7,0.0603645]
[1730852990965,4.07199,2455.8,2455.7,0.0603645]
[1730852991702,4.84659,2455.8,2455.7,0.0603645]
[1730852992205,0.7746,2455.8,2455.7,0.0603645]
[1730852992363,1.759251,2455.8,2455.7,0.0603645]
[1730852993813,0.7746,2456.1,2455.8,4.07188]
[1730852994106,0.7746,2456.1,2455.8,8.14376]
[1730852994307,0.7746,2456.1,2455.8,4.07188]
[1730852994466,0.7746,2456.1,2455.7,0.0603645]
[1730852994662,5.0,2455.9,2455.7,0.0603645]
[1730852994862,0.7746,2456.1,2455.7,0.0603645]
[1730852995067,0.7746,2456.4,2456.2,4.07132]
[1730852995284,5.0,2456.0,2455.7,0.0603645]
[1730852995809,9.07166,2456.0,2455.7,0.0603645]
[1730852996024,0.907166,2455.9,2455.7,0.0603645]
[1730852996593,0.7746,2455.8,2455.7,0.0603645]
[1730852996820,0.907166,2455.9,2455.7,0.0603645]
[1730852997316,5.0,2456.3,2455.7,0.0603645]
[1730852997504,5.0,2456.3,2455.8,3.67048828]
[1730852997716,5.0,2456.3,2456.1,4.0714]
[1730852997925,5.0,2456.3,2456.1,8.14279]
[1730852998088,5.0,2456.3,2455.7,4.8988745]
[1730852998089,5.0,2456.3,2455.9,4.07173]
[1730852998291,5.0,2456.3,2456.0,4.07164]
[1730852998536,5.0,2456.3,2455.7,0.8267645]
[1730852998738,5.0,2456.3,2456.1,4.07137]
[1730852999334,5.0,2456.3,2455.9,4.07171]
[1730852999540,0.7746,2456.7,2456.1,4.07145]
[1730852999541,5.7746,2456.7,2456.1,4.07145]
[1730852999741,5.7746,2456.7,2456.2,4.07121]
[1730853000037,1.042154,2456.6,2456.1,8.14285]
[1730853000265,5.0,2456.4,2455.9,8.14341]
[1730853000544,5.0,2456.4,2455.9,4.07167]
[1730853000694,5.7746,2456.7,2456.2,4.07122]
[1730853000894,1.042145,2456.6,2456.2,4.07122]
[1730853001311,5.112825,2456.6,2456.0,4.07156]
[1730853001507,5.0,2456.7,2456.3,4.07113]
[1730853001838,5.0,2456.7,2456.3,4.07107]
[1730853002437,5.0,2456.7,2456.3,8.14211]
[1730853002732,5.0,2456.7,2456.0,4.07161]
[1730853002961,0.84012042,2457.1,2456.9,4.07016]
[1730853003184,1.60772042,2457.6,2457.5,4.06917]
[1730853003319,1.60772042,2457.6,2457.3,4.0695]
[1730853003320,0.84012042,2457.8,2457.4,35.0]
[1730853003516,5.7676,2457.9,2457.4,35.0]
[1730853003517,0.84012042,2457.9,2457.6,7.73943828]
[1730853003761,5.0,2458.1,2457.6,7.73943828]
[1730853003965,0.84012042,2458.4,2458.2,4.06789]
[1730853004261,0.84012042,2458.8,2458.5,4.06752]
[1730853004433,5.0,2459.1,2458.5,4.06752]
[1730853004640,5.0,2458.6,2458.2,35.0]
[1730853005019,5.0,2458.6,2457.9,4.83287]
[1730853005020,5.0,2458.6,2457.9,4.06847]
[1730853005251,5.7676,2458.3,2457.7,4.06877]
[1730853005433,5.7676,2458.3,2457.7,3.67048828]
[1730853005651,5.7676,2458.3,2457.6,0.7644]